fUST/lending_fUST_20260511
["ID","MTS","AMOUNT","RATE_DAILY","PERIOD"]
[422031246,1778500238000,-580.19698312,0.00010256,2]
[422031245,1778500238000,-580.19698312,0.00010256,2]
[422031247,1778500238000,-580.19698312,0.00010256,2]
[422031242,1778500238000,-580.19698312,0.00010256,2]
[422031248,1778500238000,-580.19698312,0.00010256,2]
[422031250,1778500238000,-580.19698312,0.00010256,2]
[422031249,1778500238000,-580.19698312,0.00010256,2]
[422031252,1778500238000,-580.19698312,0.00010256,2]
[422031251,1778500238000,-580.19698312,0.00010256,2]
[422031253,1778500238000,-870.29547464,0.00010256,2]
[422031254,1778500238000,-321594.22980419,0.00010257,2]
[422031255,1778500238000,-2958.53080738,0.00010257,2]
[422031257,1778500238000,-160.0,0.00010341,2]
[422031214,1778500238000,-500.0,8.411e-05,2]
[422031256,1778500238000,-248419.70943848,0.00010257,2]
[422031259,1778500238000,-325.6024845,0.00010455,2]
[422031261,1778500238000,-600.0,0.00010563,2]
[422031262,1778500238000,-1413.97563164,0.000109,2]
[422031260,1778500238000,-151.0,0.00010508,2]
[422031241,1778500238000,-580.19698312,0.00010256,2]
[422031239,1778500238000,-580.19698312,0.00010256,2]
[422031258,1778500238000,-454.7676655,0.00010429,2]
[422031238,1778500238000,-580.19698312,0.00010256,2]
[422031240,1778500238000,-580.19698312,0.00010256,2]
[422031217,1778500238000,-279.5824197,8.966e-05,2]
[422031218,1778500238000,-4019.1191116,9.356e-05,2]
[422031220,1778500238000,-166.17757289,0.000101,2]
[422031221,1778500238000,-206.29104957,0.000101,2]
[422031222,1778500238000,-219.66393156,0.000101,2]
[422031223,1778500238000,-246.35185219,0.000101,2]
[422031224,1778500238000,-277.32805564,0.00010256,2]
[422031225,1778500238000,-580.19698312,0.00010256,2]
[422031226,1778500238000,-580.19698312,0.00010256,2]
[422031219,1778500238000,-456.3999724,9.601e-05,2]
[422031228,1778500238000,-580.19698312,0.00010256,2]
[422031227,1778500238000,-580.19698312,0.00010256,2]
[422031237,1778500238000,-580.19698312,0.00010256,2]
[422031234,1778500238000,-580.19698312,0.00010256,2]
[422031236,1778500238000,-580.19698312,0.00010256,2]
[422031233,1778500238000,-580.19698312,0.00010256,2]
[422031231,1778500238000,-580.19698312,0.00010256,2]
[422031230,1778500238000,-580.19698312,0.00010256,2]
[422031229,1778500238000,-580.19698312,0.00010256,2]
[422031235,1778500238000,-580.19698312,0.00010256,2]
[422031232,1778500238000,-580.19698312,0.00010256,2]
[422031284,1778500239000,-500.0,0.00010958,2]
[422031288,1778500239000,-500.0,0.00010958,2]
[422031285,1778500239000,-420.06,0.00010958,2]
[422031286,1778500239000,-610.84,0.00010958,2]
[422031287,1778500239000,-500.0,0.00010958,2]
[422031283,1778500239000,-500.0,0.00010958,2]
[422031289,1778500239000,-500.0,0.00010958,2]
[422031290,1778500239000,-191.42,0.00010958,2]
[422031297,1778500239000,-500.0,0.00010958,2]
[422031294,1778500239000,-500.0,0.00010958,2]
[422031292,1778500239000,-500.0,0.00010958,2]
[422031296,1778500239000,-500.0,0.00010958,2]
[422031295,1778500239000,-500.0,0.00010958,2]
[422031298,1778500239000,-500.0,0.00010958,2]
[422031279,1778500239000,-500.0,0.00010958,2]
[422031300,1778500239000,-500.0,0.00010958,2]
[422031291,1778500239000,-500.0,0.00010958,2]
[422031282,1778500239000,-500.0,0.00010958,2]
[422031271,1778500239000,-500.0,0.00010958,2]
[422031280,1778500239000,-500.0,0.00010958,2]
[422031303,1778500239000,-500.0,0.00010958,2]
[422031264,1778500239000,-3551.60991826,0.000109,2]
[422031263,1778500239000,-3204.37057875,0.000109,2]
[422031266,1778500239000,-624.5064,0.00010958,2]
[422031265,1778500239000,-502.03292429,0.00010958,2]
[422031267,1778500239000,-500.0,0.00010958,2]
[422031268,1778500239000,-500.0,0.00010958,2]
[422031281,1778500239000,-542.6,0.00010958,2]
[422031270,1778500239000,-500.0,0.00010958,2]
[422031272,1778500239000,-541.34,0.00010958,2]
[422031274,1778500239000,-500.0,0.00010958,2]
[422031273,1778500239000,-617.62,0.00010958,2]
[422031275,1778500239000,-500.0,0.00010958,2]
[422031277,1778500239000,-631.59,0.00010958,2]
[422031276,1778500239000,-530.75,0.00010958,2]
[422031278,1778500239000,-500.0,0.00010958,2]
[422031269,1778500239000,-500.0,0.00010958,2]
[422031302,1778500239000,-500.0,0.00010958,2]
[422031293,1778500239000,-500.0,0.00010958,2]
[422031304,1778500239000,-500.0,0.00010958,2]
[422031324,1778500239000,-500.0,0.00010958,2]
[422031327,1778500239000,-500.0,0.00010958,2]
[422031328,1778500239000,-500.0,0.00010958,2]
[422031329,1778500239000,-500.0,0.00010958,2]
[422031325,1778500239000,-500.0,0.00010958,2]
[422031326,1778500239000,-534.29,0.00010958,2]
[422031330,1778500239000,-637.5,0.00010958,2]
[422031323,1778500239000,-500.0,0.00010958,2]
[422031331,1778500239000,-500.0,0.00010958,2]
[422031335,1778500239000,-500.0,0.00010958,2]
[422031336,1778500239000,-543.40952576,0.00010958,2]
[422031334,1778500239000,-500.0,0.00010958,2]
[422031333,1778500239000,-500.0,0.00010958,2]
[422031337,1778500239000,-500.0,0.00010958,2]
[422031338,1778500239000,-371.41,0.00010958,2]
[422031301,1778500239000,-500.0,0.00010958,2]
[422031332,1778500239000,-500.0,0.00010958,2]
[422031321,1778500239000,-527.56,0.00010958,2]
[422031340,1778500239000,-446.65111339,0.00010958,2]
[422031320,1778500239000,-500.0,0.00010958,2]
[422031299,1778500239000,-500.0,0.00010958,2]
[422031307,1778500239000,-313.08,0.00010958,2]
[422031308,1778500239000,-500.0,0.00010958,2]
[422031322,1778500239000,-647.27,0.00010958,2]
[422031306,1778500239000,-161.14,0.00010958,2]
[422031311,1778500239000,-500.0,0.00010958,2]
[422031310,1778500239000,-168.78,0.00010958,2]
[422031339,1778500239000,-500.0,0.00010958,2]
[422031305,1778500239000,-292.05722724,0.00010958,2]
[422031313,1778500239000,-500.0,0.00010958,2]
[422031314,1778500239000,-556.13,0.00010958,2]
[422031312,1778500239000,-629.70958262,0.00010958,2]
[422031315,1778500239000,-500.0,0.00010958,2]
[422031317,1778500239000,-335.81,0.00010958,2]
[422031316,1778500239000,-500.0,0.00010958,2]
[422031318,1778500239000,-527.9,0.00010958,2]
[422031319,1778500239000,-500.0,0.00010958,2]
[422031309,1778500239000,-500.0,0.00010958,2]
[422031365,1778500240000,-500.0,0.00010958,2]
[422031366,1778500240000,-500.0,0.00010958,2]
[422031368,1778500240000,-602.33,0.00010958,2]
[422031364,1778500240000,-500.0,0.00010958,2]
[422031358,1778500240000,-53.34888661,0.00010958,2]
[422031360,1778500240000,-500.0,0.00010958,2]
[422031363,1778500240000,-500.0,0.00010958,2]
[422031359,1778500240000,-500.0,0.00010958,2]
[422031362,1778500240000,-500.0,0.00010958,2]
[422031367,1778500240000,-500.0,0.00010958,2]
[422031372,1778500240000,-254.92169211,0.00010958,2]
[422031369,1778500240000,-500.0,0.00010958,2]
[422031370,1778500240000,-500.0,0.00010958,2]
[422031380,1778500240000,-116.72668863,0.00010958,2]
[422031379,1778500240000,-500.0,0.00010958,2]
[422031377,1778500240000,-376.74071623,0.00010958,2]
[422031378,1778500240000,-735.62,0.00010958,2]
[422031376,1778500240000,-177.26,0.00010958,2]
[422031373,1778500240000,-24.69085195,0.00010958,2]
[422031374,1778500240000,-316.73702623,0.00010958,2]
[422031371,1778500240000,-245.07830789,0.00010958,2]
[422031375,1778500240000,-11.51212182,0.00010958,2]
[422031403,1778500246000,-227.81167333,0.00010958,2]
[422031409,1778500246000,-500.0,0.00010958,2]
[422031408,1778500246000,-5697.24,0.00010958,2]
[422031410,1778500246000,-500.0,0.00010958,2]
[422031406,1778500246000,-644.43,0.00010958,2]
[422031407,1778500246000,-500.0,0.00010958,2]
[422031399,1778500246000,-383.27331137,0.00010958,2]
[422031405,1778500246000,-500.0,0.00010958,2]
[422031400,1778500246000,-258.56,0.00010958,2]
[422031402,1778500246000,-1173.02,0.00010958,2]
[422031398,1778500246000,-3367.2428914,0.00010848,2]
[422031397,1778500246000,-1632.7571086,0.00010848,2]
[422031404,1778500246000,-272.18832667,0.00010958,2]
[422031416,1778500246000,-500.0,0.00010958,2]
[422031401,1778500246000,-500.0,0.00010958,2]
[422031413,1778500246000,-500.0,0.00010958,2]
[422031418,1778500246000,-754.08,0.00010958,2]
[422031427,1778500246000,-500.0,0.00010958,2]
[422031426,1778500246000,-537.86,0.00010958,2]
[422031423,1778500246000,-580.48,0.00010958,2]
[422031422,1778500246000,-500.0,0.00010958,2]
[422031420,1778500246000,-590.2,0.00010958,2]
[422031424,1778500246000,-500.0,0.00010958,2]
[422031425,1778500246000,-500.0,0.00010958,2]
[422031421,1778500246000,-500.0,0.00010958,2]
[422031411,1778500246000,-1104.91,0.00010958,2]
[422031414,1778500246000,-644.34,0.00010958,2]
[422031417,1778500246000,-500.0,0.00010958,2]
[422031412,1778500246000,-500.0,0.00010958,2]
[422031419,1778500246000,-500.0,0.00010958,2]
[422031415,1778500246000,-500.0,0.00010958,2]
[422031443,1778500247000,-311.80273523,0.00010958,2]
[422031449,1778500247000,-500.0,0.00010958,2]
[422031442,1778500247000,-633.8,0.00010958,2]
[422031439,1778500247000,-500.0,0.00010958,2]
[422031448,1778500247000,-500.0,0.00010958,2]
[422031446,1778500247000,-500.0,0.00010958,2]
[422031447,1778500247000,-500.0,0.00010958,2]
[422031440,1778500247000,-500.0,0.00010958,2]
[422031444,1778500247000,-500.0,0.00010958,2]
[422031441,1778500247000,-500.0,0.00010958,2]
[422031437,1778500247000,-500.0,0.00010958,2]
[422031434,1778500247000,-500.0,0.00010958,2]
[422031430,1778500247000,-500.0,0.00010958,2]
[422031433,1778500247000,-500.0,0.00010958,2]
[422031431,1778500247000,-500.0,0.00010958,2]
[422031432,1778500247000,-500.0,0.00010958,2]
[422031451,1778500247000,-500.0,0.00010958,2]
[422031435,1778500247000,-500.0,0.00010958,2]
[422031436,1778500247000,-500.0,0.00010958,2]
[422031429,1778500247000,-827.15,0.00010958,2]
[422031428,1778500247000,-500.0,0.00010958,2]
[422031438,1778500247000,-793.84,0.00010958,2]
[422031453,1778500247000,-615.16,0.00010958,2]
[422031445,1778500247000,-714.22,0.00010958,2]
[422031456,1778500247000,-372.39,0.00010958,2]
[422031476,1778500247000,-35751.10268384,0.00011,2]
[422031475,1778500247000,-9351.9191895,0.00010986,2]
[422031471,1778500247000,-500.0,0.00010958,2]
[422031470,1778500247000,-500.0,0.00010958,2]
[422031473,1778500247000,-500.0,0.00010958,2]
[422031467,1778500247000,-215.59,0.00010958,2]
[422031468,1778500247000,-500.0,0.00010958,2]
[422031472,1778500247000,-500.0,0.00010958,2]
[422031464,1778500247000,-500.0,0.00010958,2]
[422031469,1778500247000,-500.0,0.00010958,2]
[422031474,1778500247000,-312.26088434,0.00010966,2]
[422031466,1778500247000,-500.0,0.00010958,2]
[422031462,1778500247000,-500.0,0.00010958,2]
[422031465,1778500247000,-500.0,0.00010958,2]
[422031463,1778500247000,-500.0,0.00010958,2]
[422031457,1778500247000,-500.0,0.00010958,2]
[422031461,1778500247000,-500.0,0.00010958,2]
[422031459,1778500247000,-500.0,0.00010958,2]
[422031458,1778500247000,-500.0,0.00010958,2]
[422031454,1778500247000,-500.0,0.00010958,2]
[422031455,1778500247000,-1214.99,0.00010958,2]
[422031460,1778500247000,-500.0,0.00010958,2]
[422031452,1778500247000,-500.0,0.00010958,2]
[422031450,1778500247000,-1783.33,0.00010958,2]
[422031477,1778500280000,330.68,0.00019178,120]
[422031489,1778501142000,2184.48167421,0.0001917,120]
[422031546,1778501438000,-5000.0,7.375e-05,2]
[422031569,1778501438000,-265.60308723,8.359e-05,2]
[422031567,1778501438000,-300.0,7.751e-05,2]
[422031566,1778501438000,-300.0,7.751e-05,2]
[422031563,1778501438000,-300.0,7.751e-05,2]
[422031565,1778501438000,-300.0,7.751e-05,2]
[422031564,1778501438000,-300.0,7.751e-05,2]
[422031561,1778501438000,-300.0,7.751e-05,2]
[422031562,1778501438000,-300.0,7.751e-05,2]
[422031559,1778501438000,-300.0,7.751e-05,2]
[422031570,1778501438000,-420.0,8.359e-05,2]
[422031545,1778501438000,-720.0,7.301e-05,2]
[422031558,1778501438000,-300.0,7.751e-05,2]
[422031554,1778501438000,-300.0,7.751e-05,2]
[422031556,1778501438000,-300.0,7.751e-05,2]
[422031555,1778501438000,-300.0,7.751e-05,2]
[422031553,1778501438000,-300.0,7.751e-05,2]
[422031552,1778501438000,-598.00402032,7.751e-05,2]
[422031551,1778501438000,-5830.62478607,7.6e-05,2]
[422031549,1778501438000,-300.0,7.599e-05,2]
[422031550,1778501438000,-1200.0,7.599e-05,2]
[422031547,1778501438000,-178.17550247,7.469e-05,2]
[422031548,1778501438000,-500.0,7.562e-05,2]
[422031560,1778501438000,-300.0,7.751e-05,2]
[422031568,1778501438000,-500.0,7.961e-05,2]
[422031557,1778501438000,-300.0,7.751e-05,2]
[422031573,1778501438000,-587.0,9.195e-05,2]
[422031572,1778501438000,-176.747651,8.607e-05,2]
[422031596,1778501438000,-163.97579235,0.0001041,2]
[422031597,1778501438000,-151.5,0.0001041,2]
[422031595,1778501438000,-151.5,0.0001041,2]
[422031594,1778501438000,-151.5,0.0001041,2]
[422031593,1778501438000,-500.0,0.0001041,2]
[422031591,1778501438000,-2445.21986725,0.00010344,2]
[422031586,1778501438000,-2445.21986727,9.929e-05,2]
[422031589,1778501438000,-2190.0,0.00010114,2]
[422031590,1778501438000,-12569.333506,0.00010118,2]
[422031587,1778501438000,-2445.21986725,0.00010086,2]
[422031588,1778501438000,-823.0,0.00010114,2]
[422031592,1778501438000,-292.52238375,0.0001041,2]
[422031584,1778501438000,-600.0,9.902e-05,2]
[422031585,1778501438000,-300.0,9.929e-05,2]
[422031577,1778501438000,-12569.333506,9.709e-05,2]
[422031575,1778501438000,-500.0000009,9.2e-05,2]
[422031571,1778501438000,-1680.0,8.359e-05,2]
[422031576,1778501438000,-210.24709292,9.469e-05,2]
[422031578,1778501438000,-289.80196602,9.819e-05,2]
[422031574,1778501438000,-2351.0,9.195e-05,2]
[422031580,1778501438000,-163.59064702,9.819e-05,2]
[422031581,1778501438000,-131379.1345371,9.82e-05,2]
[422031583,1778501438000,-651.32345823,9.9e-05,2]
[422031582,1778501438000,-251.14791539,9.843e-05,2]
[422031579,1778501438000,-500.0,9.819e-05,2]
[422031642,1778501439000,-599.60298507,0.00010633,2]
[422031640,1778501439000,-578.20924308,0.00010578,2]
[422031639,1778501439000,-500.0,0.00010548,2]
[422031638,1778501439000,-12569.333506,0.00010526,2]
[422031637,1778501439000,-271.16619296,0.00010525,2]
[422031636,1778501439000,-500.0,0.00010525,2]
[422031631,1778501439000,-500.0,0.00010525,2]
[422031632,1778501439000,-500.0,0.00010525,2]
[422031633,1778501439000,-500.0,0.00010525,2]
[422031634,1778501439000,-500.0,0.00010525,2]
[422031629,1778501439000,-500.0,0.00010525,2]
[422031635,1778501439000,-500.0,0.00010525,2]
[422031643,1778501439000,-621.78829552,0.00010688,2]
[422031658,1778501439000,-151.0,0.00010951,2]
[422031646,1778501439000,-693.3919763,0.00010853,2]
[422031647,1778501439000,-2445.21986725,0.00010858,2]
[422031648,1778501439000,-720.0,0.00010892,2]
[422031645,1778501439000,-668.65185757,0.00010798,2]
[422031649,1778501439000,-719.04747942,0.00010908,2]
[422031650,1778501439000,-12569.333506,0.00010935,2]
[422031652,1778501439000,-537.6845,0.00010951,2]
[422031655,1778501439000,-151.0,0.00010951,2]
[422031653,1778501439000,-151.0,0.00010951,2]
[422031651,1778501439000,-162.380719,0.00010951,2]
[422031654,1778501439000,-151.0,0.00010951,2]
[422031656,1778501439000,-151.0,0.00010951,2]
[422031630,1778501439000,-500.0,0.00010525,2]
[422031644,1778501439000,-644.79446246,0.00010743,2]
[422031628,1778501439000,-500.0,0.00010525,2]
[422031616,1778501439000,-557.5788265,0.00010523,2]
[422031626,1778501439000,-500.0,0.00010525,2]
[422031599,1778501439000,-151.5,0.0001041,2]
[422031598,1778501439000,-500.0,0.0001041,2]
[422031602,1778501439000,-500.0,0.0001041,2]
[422031601,1778501439000,-151.5,0.0001041,2]
[422031600,1778501439000,-500.0,0.0001041,2]
[422031603,1778501439000,-236.34769206,0.0001041,2]
[422031604,1778501439000,-473.31547581,0.0001041,2]
[422031606,1778501439000,-151.5,0.0001041,2]
[422031605,1778501439000,-151.5,0.0001041,2]
[422031607,1778501439000,-151.5,0.0001041,2]
[422031608,1778501439000,-151.5,0.0001041,2]
[422031609,1778501439000,-500.0,0.0001041,2]
[422031610,1778501439000,-151.5,0.0001041,2]
[422031627,1778501439000,-500.0,0.00010525,2]
[422031612,1778501439000,-215.04220334,0.0001041,2]
[422031614,1778501439000,-250.0,0.00010411,2]
[422031657,1778501439000,-151.0,0.00010951,2]
[422031613,1778501439000,-393.01507182,0.0001041,2]
[422031615,1778501439000,-537.6845,0.00010468,2]
[422031617,1778501439000,-500.0,0.00010525,2]
[422031619,1778501439000,-500.0,0.00010525,2]
[422031618,1778501439000,-194.12963894,0.00010525,2]
[422031620,1778501439000,-500.0,0.00010525,2]
[422031621,1778501439000,-500.0,0.00010525,2]
[422031622,1778501439000,-500.0,0.00010525,2]
[422031623,1778501439000,-500.0,0.00010525,2]
[422031625,1778501439000,-500.0,0.00010525,2]
[422031624,1778501439000,-500.0,0.00010525,2]
[422031611,1778501439000,-500.0,0.0001041,2]
[422031659,1778501439000,-151.0,0.00010951,2]
[422031641,1778501439000,-2445.21986725,0.00010601,2]
[422031660,1778501439000,-151.0,0.00010951,2]
[422031693,1778501439000,-500.77548735,0.00010958,2]
[422031696,1778501439000,-504.6324388,0.00010958,2]
[422031697,1778501439000,-507.5280656,0.00010958,2]
[422031695,1778501439000,-500.0,0.00010958,2]
[422031698,1778501439000,-500.0,0.00010958,2]
[422031700,1778501439000,-504.03241565,0.00010958,2]
[422031699,1778501439000,-500.0,0.00010958,2]
[422031701,1778501439000,-500.0,0.00010958,2]
[422031702,1778501439000,-500.0,0.00010958,2]
[422031703,1778501439000,-500.0,0.00010958,2]
[422031704,1778501439000,-500.0,0.00010958,2]
[422031705,1778501439000,-507.86994447,0.00010958,2]
[422031706,1778501439000,-502.4764492,0.00010958,2]
[422031708,1778501439000,-500.0,0.00010958,2]
[422031709,1778501439000,-500.0,0.00010958,2]
[422031711,1778501439000,-633.96665467,0.00010958,2]
[422031710,1778501439000,-502.48005523,0.00010958,2]
[422031713,1778501439000,-500.0,0.00010958,2]
[422031712,1778501439000,-500.0,0.00010958,2]
[422031714,1778501439000,-500.0,0.00010958,2]
[422031716,1778501439000,-504.97581215,0.00010958,2]
[422031715,1778501439000,-505.75671957,0.00010958,2]
[422031717,1778501439000,-500.63283617,0.00010958,2]
[422031719,1778501439000,-500.0,0.00010958,2]
[422031718,1778501439000,-501.9091363,0.00010958,2]
[422031720,1778501439000,-503.00813723,0.00010958,2]
[422031721,1778501439000,-500.0,0.00010958,2]
[422031661,1778501439000,-151.0,0.00010951,2]
[422031722,1778501439000,-500.48589961,0.00010958,2]
[422031694,1778501439000,-500.0,0.00010958,2]
[422031688,1778501439000,-500.0,0.00010958,2]
[422031707,1778501439000,-500.0,0.00010958,2]
[422031690,1778501439000,-501.41861128,0.00010958,2]
[422031662,1778501439000,-151.0,0.00010951,2]
[422031691,1778501439000,-537.68751401,0.00010958,2]
[422031665,1778501439000,-151.0,0.00010951,2]
[422031666,1778501439000,-188.0,0.00010951,2]
[422031667,1778501439000,-155.0,0.00010957,2]
[422031664,1778501439000,-151.0,0.00010951,2]
[422031668,1778501439000,-503.53948077,0.00010958,2]
[422031669,1778501439000,-500.0,0.00010958,2]
[422031670,1778501439000,-500.0,0.00010958,2]
[422031671,1778501439000,-509.11795758,0.00010958,2]
[422031673,1778501439000,-501.4908382,0.00010958,2]
[422031672,1778501439000,-500.0,0.00010958,2]
[422031676,1778501439000,-500.0,0.00010958,2]
[422031674,1778501439000,-500.0,0.00010958,2]
[422031677,1778501439000,-500.0,0.00010958,2]
[422031663,1778501439000,-151.0,0.00010951,2]
[422031678,1778501439000,-500.85299948,0.00010958,2]
[422031675,1778501439000,-501.5683423,0.00010958,2]
[422031692,1778501439000,-500.0,0.00010958,2]
[422031689,1778501439000,-501.4505078,0.00010958,2]
[422031685,1778501439000,-151.5,0.00010958,2]
[422031686,1778501439000,-171.52008312,0.00010958,2]
[422031684,1778501439000,-151.5,0.00010958,2]
[422031687,1778501439000,-189.85731787,0.00010958,2]
[422031683,1778501439000,-164.02470756,0.00010958,2]
[422031680,1778501439000,-500.0,0.00010958,2]
[422031681,1778501439000,-500.0,0.00010958,2]
[422031679,1778501439000,-501.3928627,0.00010958,2]
[422031682,1778501439000,-500.0,0.00010958,2]
[422031767,1778501440000,-509.88459624,0.00010958,2]
[422031766,1778501440000,-500.0,0.00010958,2]
[422031756,1778501440000,-500.0,0.00010958,2]
[422031765,1778501440000,-151.0,0.00010958,2]
[422031758,1778501440000,-500.0,0.00010958,2]
[422031762,1778501440000,-507.68940436,0.00010958,2]
[422031763,1778501440000,-500.0,0.00010958,2]
[422031761,1778501440000,-500.0,0.00010958,2]
[422031759,1778501440000,-500.0,0.00010958,2]
[422031760,1778501440000,-500.0,0.00010958,2]
[422031770,1778501440000,-500.0,0.00010958,2]
[422031764,1778501440000,-500.0,0.00010958,2]
[422031771,1778501440000,-500.0,0.00010958,2]
[422031778,1778501440000,-500.0,0.00010958,2]
[422031768,1778501440000,-500.0,0.00010958,2]
[422031773,1778501440000,-501.89948841,0.00010958,2]
[422031772,1778501440000,-500.0,0.00010958,2]
[422031776,1778501440000,-500.0,0.00010958,2]
[422031774,1778501440000,-500.0,0.00010958,2]
[422031777,1778501440000,-500.0,0.00010958,2]
[422031775,1778501440000,-500.0,0.00010958,2]
[422031779,1778501440000,-503.72224588,0.00010958,2]
[422031781,1778501440000,-500.0,0.00010958,2]
[422031782,1778501440000,-506.23473388,0.00010958,2]
[422031784,1778501440000,-168.472909,0.00010958,2]
[422031783,1778501440000,-500.0,0.00010958,2]
[422031785,1778501440000,-8418.823105,0.00010958,2]
[422031755,1778501440000,-500.0,0.00010958,2]
[422031769,1778501440000,-503.35520321,0.00010958,2]
[422031757,1778501440000,-505.97937977,0.00010958,2]
[422031724,1778501440000,-500.0,0.00010958,2]
[422031753,1778501440000,-501.36932713,0.00010958,2]
[422031780,1778501440000,-500.0,0.00010958,2]
[422031723,1778501440000,-500.35967146,0.00010958,2]
[422031726,1778501440000,-500.0,0.00010958,2]
[422031725,1778501440000,-500.0,0.00010958,2]
[422031727,1778501440000,-500.0,0.00010958,2]
[422031728,1778501440000,-500.0,0.00010958,2]
[422031731,1778501440000,-500.61307776,0.00010958,2]
[422031730,1778501440000,-500.0,0.00010958,2]
[422031733,1778501440000,-500.53522593,0.00010958,2]
[422031732,1778501440000,-500.55374671,0.00010958,2]
[422031735,1778501440000,-500.0,0.00010958,2]
[422031738,1778501440000,-1212.7311,0.00010958,2]
[422031734,1778501440000,-500.0,0.00010958,2]
[422031737,1778501440000,-500.0,0.00010958,2]
[422031736,1778501440000,-571.18995921,0.00010958,2]
[422031740,1778501440000,-500.0,0.00010958,2]
[422031739,1778501440000,-500.0,0.00010958,2]
[422031741,1778501440000,-500.0,0.00010958,2]
[422031742,1778501440000,-502.20418286,0.00010958,2]
[422031745,1778501440000,-500.0,0.00010958,2]
[422031743,1778501440000,-500.0,0.00010958,2]
[422031744,1778501440000,-500.0,0.00010958,2]
[422031747,1778501440000,-500.0,0.00010958,2]
[422031746,1778501440000,-500.0,0.00010958,2]
[422031748,1778501440000,-501.70549634,0.00010958,2]
[422031749,1778501440000,-500.0,0.00010958,2]
[422031751,1778501440000,-187.25720454,0.00010958,2]
[422031750,1778501440000,-500.0,0.00010958,2]
[422031752,1778501440000,-500.28201657,0.00010958,2]
[422031754,1778501440000,-502.08095535,0.00010958,2]
[422031787,1778501440000,-500.0,0.00010958,2]
[422031828,1778501440000,-500.0,0.00010958,2]
[422031788,1778501440000,-500.0,0.00010958,2]
[422031823,1778501440000,-201.42595262,0.00010958,2]
[422031821,1778501440000,-500.0,0.00010958,2]
[422031825,1778501440000,-500.0,0.00010958,2]
[422031824,1778501440000,-500.0,0.00010958,2]
[422031829,1778501440000,-500.0,0.00010958,2]
[422031826,1778501440000,-500.0,0.00010958,2]
[422031830,1778501440000,-500.92138972,0.00010958,2]
[422031827,1778501440000,-511.23020978,0.00010958,2]
[422031832,1778501440000,-500.0,0.00010958,2]
[422031831,1778501440000,-504.30797828,0.00010958,2]
[422031833,1778501440000,-500.0,0.00010958,2]
[422031835,1778501440000,-14851.630189,0.00010958,2]
[422031839,1778501440000,-500.0,0.00010958,2]
[422031822,1778501440000,-500.0,0.00010958,2]
[422031834,1778501440000,-500.0,0.00010958,2]
[422031838,1778501440000,-500.0,0.00010958,2]
[422031840,1778501440000,-500.0,0.00010958,2]
[422031841,1778501440000,-500.0,0.00010958,2]
[422031845,1778501440000,-500.0,0.00010958,2]
[422031844,1778501440000,-500.52251759,0.00010958,2]
[422031843,1778501440000,-500.0,0.00010958,2]
[422031842,1778501440000,-504.18925873,0.00010958,2]
[422031850,1778501440000,-500.0,0.00010958,2]
[422031849,1778501440000,-500.0,0.00010958,2]
[422031846,1778501440000,-500.0,0.00010958,2]
[422031848,1778501440000,-500.8314974,0.00010958,2]
[422031847,1778501440000,-500.0,0.00010958,2]
[422031786,1778501440000,-502.43762601,0.00010958,2]
[422031836,1778501440000,-500.0,0.00010958,2]
[422031820,1778501440000,-500.0,0.00010958,2]